bitfinex/quotes_SOLUSD_20241205
["timestamp","ask_amount","ask_price","bid_price","bid_amount"]
[1733409830447,137.8,240.2,240.15,20.0]
[1733409831369,137.8,240.26,240.19,7.99275765]
[1733409831545,7.99275765,240.28,240.2,7.99275765]
[1733409831751,145.79275765,240.27,240.19,27.99275765]
[1733409832254,7.99275765,240.26,240.21,20.0]
[1733409832451,7.99275765,240.23,240.16,15.0387]
[1733409832667,7.99275765,240.23,240.19,20.0]
[1733409832843,137.8,240.24,240.19,20.0]
[1733409833045,0.12549,240.31,240.2,7.99275765]
[1733409833244,137.8,240.27,240.21,7.99275765]
[1733409833471,7.99275765,240.29,240.22,7.99275765]
[1733409833674,7.99275765,240.28,240.21,7.99275765]
[1733409834054,12.47712616,240.28,240.21,12.47712616]
[1733409834456,12.47712616,240.29,240.22,12.47712616]
[1733409834648,12.60261616,240.29,240.22,12.47712616]
[1733409835142,12.60261616,240.29,240.13,0.62437726]
[1733409835143,12.47712616,240.32,240.25,32.47712616]
[1733409835468,137.8,240.41,240.28,12.47712616]
[1733409835661,12.47712616,240.38,240.3,12.47712616]
[1733409836047,137.8,240.38,240.32,12.47712616]
[1733409836265,12.47712616,240.42,240.34,12.47712616]
[1733409836574,12.47712616,240.42,240.36,12.47712616]
[1733409836762,12.47712616,240.4,240.32,12.47712616]
[1733409836946,12.47712616,240.38,240.3,42.88062616]
[1733409837147,12.47712616,240.38,240.3,32.47712616]
[1733409837448,12.47712616,240.39,240.31,12.47712616]
[1733409837650,12.47712616,240.4,240.33,12.47712616]
[1733409837850,12.47712616,240.4,240.36,20.0]
[1733409838375,12.47712616,240.4,240.34,20.0]
[1733409839071,0.12549,240.39,240.34,20.0]
[1733409839278,12.47712616,240.36,240.29,12.47712616]
[1733409839573,12.47712616,240.34,240.25,12.47712616]
[1733409839765,12.47712616,240.33,240.25,12.47712616]
[1733409839957,12.47712616,240.33,240.26,12.47712616]
[1733409840164,12.47712616,240.34,240.26,12.47712616]
[1733409840356,150.27712616,240.33,240.26,12.47712616]
[1733409840551,12.60261616,240.32,240.25,12.47712616]
[1733409840857,12.47712616,240.31,240.23,12.47712616]
[1733409841778,150.27712616,240.28,240.21,15.757]
[1733409842070,150.27712616,240.28,240.18,4.161]
[1733409842071,150.27712616,240.28,240.2,12.47712616]
[1733409842274,12.47712616,240.27,240.2,12.47712616]
[1733409842463,12.47712616,240.28,240.21,12.47712616]
[1733409842660,12.47712616,240.27,240.2,12.47712616]
[1733409842873,12.47712616,240.26,240.19,12.47712616]
[1733409843069,137.8,240.31,240.15,14.9262]
[1733409843070,12.60261616,240.22,240.15,14.9262]
[1733409843371,12.60261616,240.22,240.14,12.47712616]
[1733409843583,12.47712616,240.25,240.18,12.47712616]
[1733409843878,150.27712616,240.27,240.2,12.47712616]
[1733409844076,12.47712616,240.22,240.15,12.47712616]
[1733409844283,12.47712616,240.24,240.17,12.47712616]
[1733409844657,12.60261616,240.25,240.18,12.47712616]
[1733409844852,12.47712616,240.27,240.2,12.47712616]
[1733409845083,12.47712616,240.29,240.23,20.0]
[1733409845372,12.47712616,240.27,240.23,20.0]
[1733409845682,12.47712616,240.25,240.21,20.0]
[1733409845879,12.47712616,240.28,240.21,32.47712616]
[1733409846065,12.47712616,240.27,240.21,20.0]
[1733409846263,12.47712616,240.27,240.22,20.0]
[1733409846684,12.47712616,240.26,240.22,20.0]
[1733409846980,12.47712616,240.27,240.22,20.0]
[1733409847191,12.47712616,240.24,240.16,12.47712616]
[1733409847649,12.47712616,240.25,240.17,12.47712616]
[1733409847851,137.8,240.26,240.2,12.47712616]
[1733409848078,0.12549,240.25,240.2,12.47712616]
[1733409848457,137.8,240.26,240.21,12.47712616]
[1733409848658,137.8,240.26,240.2,12.47712616]
[1733409849084,150.27712616,240.26,240.19,12.47712616]
[1733409849278,150.27712616,240.26,240.22,20.0]
[1733409849760,12.47712616,240.27,240.23,20.0]
[1733409849951,0.12549,240.26,240.23,20.0]
[1733409850962,12.47712616,240.31,240.24,12.47712616]
[1733409851552,12.47712616,240.29,240.23,20.0]
[1733409851757,12.47712616,240.29,240.24,20.0]
[1733409852076,12.47712616,240.28,240.24,20.0]
[1733409852458,12.47712616,240.26,240.22,20.0]
[1733409853497,12.47712616,240.26,240.2,12.47712616]
[1733409853681,12.47712616,240.25,240.21,20.0]
[1733409853882,12.60261616,240.26,240.21,20.0]
[1733409854191,0.12549,240.26,240.21,20.0]
[1733409854391,5.835,240.35,240.25,32.47712616]
[1733409854562,12.47712616,240.35,240.29,20.0]
[1733409854891,12.47712616,240.32,240.25,32.47712616]
[1733409855372,12.47712616,240.32,240.26,4.161]
[1733409856087,7.98257909,240.32,240.26,4.161]
[1733409856462,137.8,240.39,240.31,4.161]
[1733409856662,7.98257909,240.37,240.31,4.161]
[1733409856862,7.98257909,240.35,240.31,4.161]
[1733409857271,7.98257909,240.35,240.31,24.161]
[1733409857769,7.98257909,240.37,240.31,4.161]
[1733409858090,0.12549,240.36,240.34,4.161]
[1733409858793,137.8,240.39,240.34,24.161]
[1733409858985,8.10806909,240.37,240.34,24.161]
[1733409859162,0.12549,240.37,240.34,24.161]
[1733409859364,8.10806909,240.37,240.34,4.161]
[1733409859666,0.12549,240.38,240.34,24.161]
[1733409859893,144.0731,240.47,240.36,4.161]
[1733409860106,12.4633563,240.42,240.38,4.161]
[1733409860593,12.4633563,240.43,240.38,4.161]
[1733409860892,12.4633563,240.53,240.46,4.161]
[1733409861072,12.4633563,240.54,240.47,12.4633563]
[1733409861786,137.8,240.53,240.48,4.161]
[1733409862159,137.8,240.53,240.5,20.0]
[1733409862465,137.8,240.53,240.51,4.161]
[1733409862788,137.8,240.53,240.51,24.161]
[1733409863496,137.8,240.53,240.5,16.6243563]
[1733409864322,12.4633563,240.62,240.55,24.161]
[1733409864596,137.8,240.62,240.6,4.161]
[1733409864796,137.8,240.66,240.59,24.161]
[1733409865002,137.8,240.66,240.55,12.4633563]
[1733409865179,12.9373244,240.72,240.55,12.4633563]
[1733409865180,12.4633563,240.6,240.55,20.0]
[1733409865576,23.3232244,240.72,240.58,12.4633563]
[1733409865577,150.2633563,240.65,240.58,12.4633563]
[1733409865798,137.8,240.65,240.56,4.161]
[1733409865975,12.4633563,240.6,240.55,20.0]
[1733409866313,12.4633563,240.6,240.56,20.0]
[1733409866477,12.4633563,240.6,240.54,20.0]
[1733409866809,12.4633563,240.6,240.55,4.161]
[1733409867697,12.4633563,240.6,240.53,12.4633563]
[1733409867698,12.4633563,240.58,240.49,20.0]
[1733409867882,12.4633563,240.56,240.5,4.161]
[1733409868077,5.9069,240.67,240.45,15.2779]
[1733409868078,12.4633563,240.52,240.45,15.2779]
[1733409868407,12.4633563,240.5,240.42,12.4633563]
[1733409868577,12.4633563,240.5,240.4,9.9123]
[1733409868578,12.4633563,240.5,240.43,12.4633563]
[1733409868779,12.4633563,240.49,240.41,12.4633563]
[1733409869003,0.12549,240.48,240.43,4.156]
[1733409869300,0.12549,240.5,240.43,16.6193563]
[1733409869480,0.25098,240.5,240.44,12.4633563]
[1733409869680,0.25098,240.5,240.43,16.6193563]
[1733409869899,0.25098,240.5,240.4,9.9123]
[1733409870205,137.8,240.56,240.48,12.4633563]
[1733409870378,137.8,240.56,240.5,12.4633563]
[1733409871106,150.2633563,240.56,240.47,16.6193563]
[1733409871306,12.4633563,240.55,240.5,20.0]
[1733409871980,150.2633563,240.55,240.5,20.0]
[1733409873193,150.2633563,240.55,240.48,12.4633563]
[1733409873699,137.8,240.55,240.48,12.4633563]
[1733409874213,150.2633563,240.55,240.48,12.4633563]
[1733409874400,12.4633563,240.53,240.48,20.0]
[1733409874705,0.12549,240.54,240.47,32.4633563]
[1733409875086,12.5888463,240.54,240.47,20.0]
[1733409875282,12.5888463,240.54,240.49,20.0]
[1733409875590,137.8,240.55,240.5,12.4633563]
[1733409875797,137.8,240.55,240.49,12.4633563]
[1733409876096,137.8,240.55,240.48,12.4633563]
[1733409876304,150.2633563,240.55,240.48,12.4633563]
[1733409876686,12.4633563,240.55,240.48,12.4633563]
[1733409877084,137.8,240.55,240.48,12.4633563]
[1733409877392,150.2633563,240.55,240.48,12.4633563]
[1733409878309,137.8,240.55,240.5,12.4633563]
[1733409878905,0.25098,240.56,240.53,20.0]
[1733409879212,0.12549,240.56,240.53,20.0]
[1733409879510,137.8,240.57,240.53,20.0]
[1733409879706,137.8,240.57,240.5,20.0]
[1733409880013,12.4633563,240.58,240.43,20.0]
[1733409880179,137.8,240.56,240.52,20.0]
[1733409880578,10.3884,240.66,240.47,12.4633563]
[1733409880579,137.8,240.53,240.47,12.4633563]
[1733409881404,0.12549,240.55,240.49,12.4633563]
[1733409881880,137.92549,240.55,240.51,12.4633563]
[1733409882075,137.8,240.57,240.49,12.4633563]
[1733409883102,12.4633563,240.56,240.47,12.4633563]
[1733409883296,137.92549,240.55,240.47,12.4633563]
[1733409883502,137.8,240.54,240.47,12.4633563]
[1733409884420,137.8,240.52,240.48,4.156]
[1733409884720,0.25098,240.53,240.42,4.156]
[1733409884721,0.25098,240.49,240.42,4.156]
[1733409884885,137.8,240.48,240.42,16.6193563]
[1733409885089,150.2633563,240.48,240.42,4.156]
[1733409885606,137.8,240.48,240.43,4.156]
[1733409886020,0.12549,240.45,240.43,4.156]
[1733409886305,0.25098,240.46,240.43,4.156]
[1733409886704,0.12549,240.46,240.41,4.156]
[1733409887710,137.8,240.45,240.42,4.156]
[1733409888007,137.8,240.45,240.42,16.6193563]
[1733409888220,137.8,240.45,240.44,4.156]
[1733409889518,137.8,240.45,240.42,16.6193563]
[1733409890113,137.8,240.45,240.44,4.156]
[1733409890916,137.92549,240.45,240.44,4.156]
[1733409891093,0.12549,240.44,240.41,24.156]
[1733409891293,0.12549,240.44,240.43,4.156]
[1733409891704,137.92549,240.44,240.43,4.156]
[1733409892418,137.92549,240.44,240.41,4.156]
[1733409893336,137.92549,240.44,240.4,4.156]
[1733409893814,12.4633563,240.42,240.4,4.156]
[1733409893984,12.7143363,240.41,240.4,4.156]
[1733409894189,36.4912203,240.41,240.4,4.156]
[1733409894430,36.4912203,240.41,240.29,15.3044]
[1733409894431,0.12549,240.39,240.33,4.156]
[1733409894720,36.3657303,240.39,240.33,4.156]
[1733409895126,0.12549,240.39,240.35,4.156]
[1733409896017,137.8,240.38,240.37,20.0]
[1733409896315,137.8,240.38,240.37,32.4633563]
[1733409896503,150.2633563,240.45,240.38,20.0]
[1733409896707,12.4633563,240.44,240.38,20.0]
[1733409896920,12.4633563,240.44,240.38,24.156]
[1733409897095,12.4633563,240.44,240.37,4.156]
[1733409897292,0.12549,240.43,240.37,16.6193563]
[1733409898119,12.5888463,240.43,240.37,4.156]
[1733409898719,137.8,240.45,240.4,16.6193563]
[1733409899019,137.8,240.47,240.42,12.4633563]
[1733409899196,137.8,240.47,240.41,12.4633563]
[1733409899403,150.2633563,240.47,240.39,12.4633563]
[1733409899603,137.8,240.47,240.38,20.0]
[1733409899918,12.4633563,240.45,240.38,20.0]
[1733409900217,12.4633563,240.46,240.39,12.4633563]
[1733409900424,12.4633563,240.45,240.38,32.4633563]
[1733409900629,0.12549,240.45,240.38,32.4633563]
[1733409900808,12.4633563,240.39,240.37,0.0416]
[1733409901202,0.12549,240.4,240.37,0.0416]
[1733409901401,137.8,240.41,240.37,0.0416]
[1733409902329,137.8,240.41,240.37,4.1976]
[1733409903214,137.8,240.41,240.37,0.0416]
[1733409903417,137.8,240.44,240.41,20.0]
[1733409903617,137.8,240.45,240.43,20.0]
[1733409903924,137.8,240.45,240.43,32.4633563]
[1733409904116,137.8,240.45,240.41,12.4633563]
[1733409904322,137.8,240.45,240.42,12.4633563]
[1733409904513,137.8,240.45,240.44,4.156]
[1733409904700,12.4633563,240.45,240.38,12.4633563]
[1733409904902,150.2633563,240.46,240.39,32.4633563]
[1733409905335,12.4633563,240.44,240.39,20.0]
[1733409905539,12.4633563,240.42,240.39,4.156]
[1733409905827,0.12549,240.41,240.39,4.156]
[1733409906029,23.776884,240.42,240.39,4.156]
[1733409906209,137.8,240.44,240.39,4.156]
[1733409906411,0.12549,240.43,240.39,4.156]
[1733409906730,0.12549,240.43,240.4,16.6193563]
[1733409907027,0.12549,240.43,240.4,4.156]
[1733409907416,137.8,240.44,240.42,4.156]
[1733409907629,137.8,240.47,240.44,4.156]
[1733409907934,137.8,240.51,240.45,12.4633563]
[1733409908111,137.8,240.51,240.47,12.4633563]
[1733409908311,137.8,240.51,240.46,12.4633563]
[1733409908527,137.8,240.51,240.47,4.156]
[1733409909127,0.12549,240.52,240.49,4.156]
[1733409909430,12.4633563,240.51,240.46,20.0]
[1733409909610,137.8,240.51,240.39,10.3997]
[1733409909812,137.8,240.5,240.42,20.0]
[1733409910011,150.2633563,240.5,240.42,20.0]
[1733409910207,137.8,240.56,240.42,20.0]
[1733409910412,12.4633563,240.55,240.47,12.4633563]
[1733409910634,12.4633563,240.55,240.49,4.156]
[1733409911013,137.8,240.6,240.49,4.156]
[1733409911206,12.4633563,240.58,240.5,12.4633563]
[1733409911526,12.4633563,240.58,240.51,12.4633563]
[1733409911846,12.4633563,240.58,240.5,16.6193563]
[1733409912139,12.4633563,240.58,240.52,4.156]
[1733409912435,12.4633563,240.57,240.52,4.156]
[1733409912617,12.4633563,240.58,240.52,4.156]
[1733409913028,137.92549,240.57,240.44,4.156]
[1733409913237,137.92549,240.57,240.5,12.4633563]
[1733409913541,23.776884,240.56,240.49,12.4633563]
[1733409913729,12.5888463,240.55,240.49,12.4633563]
[1733409914034,0.12549,240.55,240.52,20.0]
[1733409914222,0.12549,240.55,240.53,4.156]
[1733409915632,0.12549,240.55,240.51,4.156]
[1733409915832,137.8,240.57,240.5,12.4633563]
[1733409915833,137.8,240.57,240.54,4.156]
[1733409916136,137.8,240.58,240.54,16.6193563]
[1733409916635,137.8,240.63,240.57,12.4633563]
[1733409916838,137.8,240.66,240.59,12.4633563]
[1733409917138,12.4633563,240.63,240.59,4.156]
[1733409917310,12.4633563,240.64,240.59,24.156]
[1733409917510,12.4633563,240.64,240.59,4.156]
[1733409918111,12.4633563,240.6,240.53,4.156]
[1733409918419,150.2633563,240.58,240.53,4.156]
[1733409918616,0.12549,240.57,240.53,4.156]
[1733409919032,150.2633563,240.56,240.49,12.4633563]
[1733409919262,137.8,240.56,240.52,4.156]
[1733409919435,137.8,240.58,240.53,12.4633563]
[1733409919641,137.8,240.68,240.53,12.4633563]
[1733409919817,12.4633563,240.62,240.55,12.4633563]
[1733409920011,12.4633563,240.59,240.51,12.4633563]
[1733409920216,12.4633563,240.59,240.54,20.0]
[1733409920408,137.8,240.59,240.55,12.4633563]
[1733409920630,137.8,240.59,240.53,12.4633563]
[1733409920824,150.2633563,240.59,240.53,20.0]
[1733409921034,137.8,240.59,240.53,32.4633563]
[1733409921209,137.8,240.59,240.55,12.4633563]
[1733409921418,137.8,240.63,240.58,12.4633563]
[1733409921847,12.4633563,240.62,240.54,12.4633563]
[1733409922134,12.4633563,240.61,240.53,32.4633563]
[1733409922345,12.4633563,240.61,240.54,12.4633563]
[1733409922638,12.4633563,240.6,240.53,20.0]
[1733409922817,36.3657303,240.62,240.54,12.4633563]
[1733409923213,12.4633563,240.66,240.59,12.4633563]
[1733409923429,12.4633563,240.62,240.55,18.6850563]
[1733409923637,137.8,240.61,240.51,10.3943]
[1733409923837,12.4633563,240.59,240.51,12.4633563]
[1733409924432,0.12549,240.58,240.51,12.4633563]
[1733409924944,12.4633563,240.56,240.52,20.0]
[1733409925142,0.12549,240.56,240.52,32.4633563]
[1733409925443,137.8,240.57,240.52,32.4633563]
[1733409925823,137.8,240.57,240.53,42.8570563]
[1733409926044,137.8,240.57,240.56,12.4633563]
[1733409926833,137.8,240.57,240.56,20.0]
[1733409927317,137.8,240.59,240.49,15.5343]
[1733409927541,0.12549,240.58,240.51,12.4633563]
[1733409927940,12.4633563,240.54,240.49,15.5343]
[1733409928148,12.4633563,240.54,240.48,12.4633563]
[1733409928325,12.4633563,240.52,240.45,12.4633563]
[1733409928655,150.2633563,240.53,240.46,12.4633563]
[1733409929147,12.4633563,240.51,240.44,16.6193563]
[1733409929348,137.8,240.53,240.45,12.4633563]
[1733409929349,12.4633563,240.52,240.45,12.4633563]
[1733409929546,12.5888463,240.5,240.44,12.4633563]
[1733409929848,12.4633563,240.52,240.45,12.4633563]
[1733409930222,137.8,240.61,240.5,12.4633563]
[1733409930422,137.92549,240.56,240.49,12.4633563]
[1733409930748,137.8,240.55,240.48,12.4633563]
[1733409930923,137.8,240.55,240.52,12.4633563]
[1733409931129,137.8,240.55,240.5,12.4633563]
[1733409931647,12.4633563,240.54,240.48,20.0]
[1733409931824,12.4633563,240.52,240.49,20.0]
[1733409932147,12.4633563,240.54,240.49,20.0]
[1733409932355,12.4633563,240.55,240.48,20.0]
[1733409932647,12.4633563,240.56,240.48,32.4633563]
[1733409932944,137.8,240.58,240.51,12.4633563]
[1733409933530,137.8,240.63,240.57,12.4633563]
[1733409933723,12.4633563,240.65,240.57,12.4633563]
[1733409934233,12.4633563,240.66,240.59,12.4633563]
[1733409934552,12.4633563,240.67,240.59,12.4633563]
[1733409936044,137.8,240.68,240.61,12.4633563]
[1733409936251,12.4633563,240.71,240.63,12.4633563]
[1733409936635,12.4633563,240.69,240.61,21.8968563]
[1733409936834,12.4633563,240.71,240.63,12.4633563]
[1733409937033,12.4633563,240.65,240.58,20.0]
[1733409937328,12.4633563,240.63,240.58,20.0]
[1733409937750,12.4633563,240.63,240.55,21.9306563]
[1733409938045,12.4633563,240.63,240.55,12.4633563]
[1733409938250,12.4633563,240.63,240.58,20.0]
[1733409938446,12.9373244,240.72,240.58,20.0]
[1733409938447,137.8,240.62,240.58,12.4633563]
[1733409938648,137.8,240.62,240.57,12.4633563]
[1733409938835,137.8,240.62,240.55,12.4633563]
[1733409939555,12.4633563,240.61,240.54,4.156]
[1733409939759,137.8,240.62,240.55,12.4633563]
[1733409939927,12.4633563,240.63,240.55,12.4633563]
[1733409940230,12.4633563,240.64,240.56,12.4633563]
[1733409940429,12.4633563,240.64,240.56,16.6193563]
[1733409941233,12.4633563,240.62,240.56,12.4633563]
[1733409941443,150.2633563,240.6,240.53,4.156]
[1733409941626,137.8,240.6,240.54,12.4633563]
[1733409941955,150.2633563,240.6,240.53,4.156]
[1733409942627,12.4633563,240.58,240.53,4.156]
[1733409942825,0.12549,240.61,240.53,4.156]
[1733409942826,137.8,240.57,240.53,4.156]
[1733409943053,137.8,240.57,240.54,12.4633563]
[1733409943239,137.8,240.57,240.54,16.6193563]
[1733409943549,137.8,240.57,240.54,4.156]
[1733409943929,0.12549,240.61,240.54,4.156]
[1733409943930,0.12549,240.68,240.56,12.4633563]
[1733409944131,0.12549,240.68,240.57,12.4633563]
[1733409944132,12.4633563,240.64,240.57,12.4633563]
[1733409944558,12.4633563,240.62,240.55,12.4633563]
[1733409944761,12.4633563,240.6,240.56,20.0]
[1733409944932,12.4633563,240.62,240.56,20.0]
[1733409945656,12.4633563,240.62,240.54,4.156]
[1733409946565,137.8,240.65,240.57,12.4633563]
[1733409947268,12.4633563,240.61,240.56,20.0]
[1733409947635,12.4633563,240.63,240.56,20.0]
[1733409947947,12.4633563,240.65,240.58,12.4633563]
[1733409948264,12.4633563,240.63,240.56,32.4633563]
[1733409949146,12.4633563,240.65,240.56,32.4633563]
[1733409949461,12.5888463,240.67,240.58,12.4633563]
[1733409950051,12.4633563,240.67,240.6,12.4633563]
[1733409950257,137.8,240.71,240.64,12.4633563]
[1733409951258,12.9373244,240.72,240.64,12.4633563]
[1733409951457,12.9373244,240.72,240.6,10.3903]
[1733409951458,0.4739681,240.72,240.66,12.4633563]
[1733409951652,0.4739681,240.72,240.68,12.4633563]
[1733409951855,12.4633563,240.7,240.57,15.8765]
[1733409952072,12.4633563,240.7,240.63,12.4633563]
[1733409952463,137.8,240.7,240.63,12.4633563]
[1733409952652,137.92549,240.68,240.65,12.4633563]
[1733409952968,137.8,240.67,240.63,12.4633563]
[1733409953342,137.8,240.69,240.61,12.4633563]
[1733409953542,12.5888463,240.68,240.61,12.4633563]
[1733409953765,137.8,240.67,240.59,12.4633563]
[1733409953950,0.12549,240.66,240.59,12.4633563]
[1733409954146,0.12549,240.66,240.6,12.4633563]
[1733409954347,150.2633563,240.67,240.6,12.4633563]
[1733409954566,0.12549,240.66,240.58,12.4633563]
[1733409954774,0.12549,240.66,240.59,12.4633563]
[1733409955067,12.4633563,240.66,240.59,12.4633563]
[1733409955569,0.12549,240.66,240.59,12.4633563]
[1733409955943,12.5888463,240.66,240.59,12.4633563]
[1733409957888,137.8,240.65,240.62,20.0]
[1733409958169,137.8,240.65,240.58,12.4633563]
[1733409958674,150.2633563,240.65,240.58,12.4633563]
[1733409960254,12.4633563,240.66,240.58,12.4633563]
[1733409960470,12.4633563,240.66,240.6,12.4633563]
[1733409960670,12.4633563,240.67,240.59,12.4633563]
[1733409961050,137.8,240.67,240.62,12.4633563]
[1733409962369,12.4633563,240.64,240.56,32.4633563]
[1733409962669,12.4633563,240.64,240.56,12.4633563]
[1733409962880,12.4633563,240.64,240.57,12.4633563]
[1733409963075,12.4633563,240.64,240.56,12.4633563]
[1733409963246,6.1685,240.69,240.6,12.4633563]
[1733409963445,12.4633563,240.63,240.56,22.8556563]
[1733409963661,137.8,240.63,240.56,12.4633563]
[1733409963866,12.4633563,240.57,240.46,16.0017]
[1733409964069,12.4633563,240.56,240.48,12.4633563]
[1733409964297,12.4633563,240.57,240.46,16.0017]
[1733409964482,12.4633563,240.58,240.51,12.4633563]
[1733409964853,137.8,240.59,240.52,12.4633563]
[1733409965055,12.4633563,240.58,240.5,12.4633563]
[1733409965252,12.4633563,240.56,240.48,12.4633563]
[1733409965474,137.8,240.57,240.51,12.4633563]
[1733409965975,137.8,240.59,240.54,12.4633563]
[1733409966274,137.8,240.59,240.53,12.4633563]
[1733409966574,150.2633563,240.59,240.51,12.4633563]
[1733409966786,12.4633563,240.57,240.49,32.4633563]
[1733409967069,150.2633563,240.59,240.51,12.4633563]
[1733409967270,25.88304696,240.8,240.51,12.4633563]
[1733409967271,137.8,240.68,240.58,12.4633563]
[1733409967452,137.8,240.68,240.56,20.0]
[1733409967453,137.8,240.68,240.62,12.4633563]
[1733409967660,137.8,240.68,240.6,12.4633563]
[1733409968070,12.4633563,240.67,240.58,12.4633563]
[1733409968463,137.8,240.68,240.62,12.4633563]
[1733409968647,12.4633563,240.67,240.58,12.4633563]
[1733409968847,150.2633563,240.67,240.6,12.4633563]
[1733409969679,137.8,240.67,240.6,12.4633563]
[1733409970179,137.8,240.68,240.62,12.4633563]
[1733409970977,137.8,240.68,240.64,12.4633563]
[1733409971156,12.9373244,240.72,240.57,15.8192]
[1733409971157,137.8,240.71,240.66,12.4633563]
[1733409971352,0.4739681,240.72,240.68,12.4633563]
[1733409971553,0.4739681,240.72,240.6,12.4633563]
[1733409971751,0.4739681,240.72,240.68,12.4633563]
[1733409971966,0.4739681,240.72,240.7,12.4633563]
[1733409973586,0.4739681,240.72,240.69,12.4633563]
[1733409973783,0.4739681,240.72,240.7,12.4633563]
[1733409974783,0.4739681,240.72,240.67,12.4633563]
[1733409974987,0.4739681,240.72,240.7,12.4633563]
[1733409975147,0.4739681,240.72,240.71,12.4633563]
[1733409975600,0.4739681,240.72,240.7,12.4633563]
[1733409976607,0.4739681,240.72,240.67,12.4633563]
[1733409977007,0.4739681,240.72,240.68,12.4633563]
[1733409977500,0.4739681,240.72,240.67,12.4633563]
[1733409978007,0.4739681,240.72,240.66,12.4633563]
[1733409978983,0.12549,240.71,240.64,12.4633563]
[1733409979187,0.12549,240.71,240.59,10.3908]
[1733409979188,0.12549,240.71,240.65,12.4633563]
[1733409979502,12.5888463,240.71,240.63,12.4633563]
[1733409979710,150.2633563,240.68,240.61,12.4633563]
[1733409979876,137.8,240.7,240.66,12.4633563]
[1733409980075,0.4739681,240.72,240.68,12.4633563]
[1733409980307,138.2739681,240.72,240.69,12.4633563]
[1733409980499,138.2739681,240.72,240.6,12.4633563]
[1733409980500,138.2739681,240.72,240.68,12.4633563]
[1733409980807,0.4739681,240.72,240.69,12.4633563]
[1733409981183,0.4739681,240.72,240.71,12.4633563]
[1733409981582,0.4739681,240.72,240.69,12.4633563]
[1733409982495,0.4739681,240.72,240.67,12.4633563]
[1733409982803,0.4739681,240.72,240.66,12.4633563]
[1733409983002,12.4633563,240.68,240.53,0.62329498]
[1733409983303,12.4633563,240.54,240.46,9.4553]
[1733409983488,12.4633563,240.48,240.41,6.2836]
[1733409983690,3.76704933,240.53,240.42,12.4633563]
[1733409983884,12.4633563,240.51,240.42,12.4633563]
[1733409984086,12.4633563,240.53,240.44,12.4633563]
[1733409984494,12.4633563,240.54,240.46,12.4633563]
[1733409984691,137.8,240.56,240.44,10.3973]
[1733409984692,150.2633563,240.56,240.48,12.4633563]
[1733409985005,12.4633563,240.54,240.46,12.4633563]
[1733409985392,150.2633563,240.56,240.48,12.4633563]
[1733409985699,12.4633563,240.58,240.5,32.4633563]
[1733409985880,12.4633563,240.56,240.48,42.8590563]
[1733409986297,12.4633563,240.54,240.46,12.4633563]
[1733409986499,12.4633563,240.52,240.44,12.4633563]
[1733409987903,12.4633563,240.52,240.47,20.0]
[1733409988309,12.4633563,240.54,240.47,20.0]
[1733409989089,12.4633563,240.54,240.43,10.3977]
[1733409989090,12.4633563,240.54,240.46,32.4633563]
[1733409991009,12.4633563,240.52,240.46,20.0]
[1733409991191,12.4633563,240.5,240.46,20.0]
[1733409991576,12.4633563,240.48,240.4,21.9186563]
[1733409991779,12.4633563,240.44,240.37,0.0416]
[1733409992095,12.4633563,240.48,240.39,12.4633563]
[1733409992302,12.4633563,240.48,240.41,12.4633563]
[1733409992478,12.4633563,240.5,240.41,12.4633563]
[1733409992677,12.4633563,240.48,240.41,12.4633563]
[1733409992882,137.8,240.52,240.38,11.02390413]
[1733409992883,12.4633563,240.46,240.39,12.4633563]
[1733409993101,12.4633563,240.48,240.42,20.0]
[1733409993386,12.4633563,240.48,240.44,20.0]
[1733409994604,12.4633563,240.56,240.5,20.0]
[1733409994794,12.4633563,240.59,240.52,20.0]
[1733409995602,12.4633563,240.57,240.52,20.0]
[1733409996200,12.4633563,240.55,240.5,20.0]
[1733409996416,12.4633563,240.57,240.5,20.0]
[1733409996887,12.4633563,240.57,240.52,20.0]
[1733409997091,12.4633563,240.59,240.52,20.0]